[Event "*** Titled Tuesday Blitz"]
[Site "Chess.com"]
[Date "2018.04.03"]
[Round "4"]
[White "ristingho"]
[Black "Entilza"]
[Result "1-0"]
[WhiteElo "2297"]
[BlackElo "2180"]
[TimeControl "180+2"]
[EndTime "13:47:38 PDT"]
[Termination "ristingho won on time"]

1. d4 {[%clk 0:02:56.3]} 1... Nf6 {[%clk 0:00:18]} 2. Bg5 {[%clk 0:02:52.3]}
2... e6 {[%clk 0:00:17]} 3. e4 {[%clk 0:02:51.2]} 3... h6 {[%clk 0:00:18]} 4.
Bxf6 {[%clk 0:02:52]} 4... Qxf6 {[%clk 0:00:19.9]} 5. c3 {[%clk 0:02:53.8]} 5...
g6 {[%clk 0:00:18.3]} 6. Bd3 {[%clk 0:02:52.9]} 6... d6 {[%clk 0:00:18.8]} 7.
Ne2 {[%clk 0:02:54.4]} 7... Bg7 {[%clk 0:00:19.2]} 8. O-O {[%clk 0:02:55.9]}
8... O-O {[%clk 0:00:19.4]} 9. Nd2 {[%clk 0:02:57.5]} 9... b6 {[%clk 0:00:18.1]}
10. a4 {[%clk 0:02:56.5]} 10... a5 {[%clk 0:00:18.3]} 11. f4 {[%clk 0:02:57.1]}
11... Bb7 {[%clk 0:00:19.1]} 12. Nf3 {[%clk 0:02:35.8]} 12... Nd7 {[%clk
0:00:18.3]} 13. Qd2 {[%clk 0:02:36.2]} 13... Qe7 {[%clk 0:00:12.3]} 14. Rae1
{[%clk 0:02:35.5]} 14... c5 {[%clk 0:00:06.5]} 15. f5 {[%clk 0:02:32.8]} 15...
exf5 {[%clk 0:00:02.6]} 16. exf5 {[%clk 0:02:33.5]} 1-0

[Event "*** Titled Tuesday Blitz"]
[Site "Chess.com"]
[Date "2018.04.03"]
[Round "4"]
[White "mokerslag"]
[Black "nOcHeaTiNgKiD"]
[Result "1-0"]
[WhiteElo "2410"]
[BlackElo "2360"]
[TimeControl "180+2"]
[EndTime "13:48:03 PDT"]
[Termination "mokerslag won by resignation"]

1. e4 {[%clk 0:03:01.9]} 1... e5 {[%clk 0:02:58]} 2. Nf3 {[%clk 0:03:02.7]} 2...
Nc6 {[%clk 0:02:58.2]} 3. Bc4 {[%clk 0:03:04.1]} 3... Bc5 {[%clk 0:02:58.6]} 4.
O-O {[%clk 0:03:04.5]} 4... Nf6 {[%clk 0:02:59.3]} 5. d4 {[%clk 0:03:05.9]} 5...
Bxd4 {[%clk 0:02:59.6]} 6. Nxd4 {[%clk 0:03:07.2]} 6... Nxd4 {[%clk 0:03:00.3]}
7. f4 {[%clk 0:03:08.6]} 7... d6 {[%clk 0:02:50.8]} 8. fxe5 {[%clk 0:03:09.8]}
8... dxe5 {[%clk 0:02:49.3]} 9. Bg5 {[%clk 0:03:11.3]} 9... h6 {[%clk
0:02:13.6]} 10. Bxf6 {[%clk 0:02:51.2]} 10... gxf6 {[%clk 0:02:14.3]} 11. c3
{[%clk 0:02:53]} 11... Nc6 {[%clk 0:02:01.9]} 12. Qh5 {[%clk 0:02:47.6]} 12...
Qe7 {[%clk 0:02:01.5]} 13. Na3 {[%clk 0:02:45.4]} 13... Be6 {[%clk 0:01:50.1]}
14. Rad1 {[%clk 0:02:45.6]} 14... Bxc4 {[%clk 0:01:48.2]} 15. Nxc4 {[%clk
0:02:43.6]} 15... Qc5+ {[%clk 0:01:48.9]} 16. Kh1 {[%clk 0:02:44.9]} 16... Qxc4
{[%clk 0:01:48]} 17. Rxf6 {[%clk 0:02:46.4]} 17... Rd8 {[%clk 0:01:07.7]} 18.
Rdf1 {[%clk 0:02:09.2]} 18... Rd6 {[%clk 0:00:24.3]} 19. Rxf7 {[%clk 0:02:07.5]}
19... Kd8 {[%clk 0:00:20.1]} 20. Rf8+ {[%clk 0:02:07.6]} 1-0

[Event "*** Titled Tuesday Blitz"]
[Site "Chess.com"]
[Date "2018.04.03"]
[Round "4"]
[White "Parhamov"]
[Black "GasconJR"]
[Result "1-0"]
[WhiteElo "2815"]
[BlackElo "2337"]
[TimeControl "180+2"]
[EndTime "13:48:13 PDT"]
[Termination "Parhamov won by resignation"]

1. Nf3 {[%clk 0:03:00.7]} 1... Nf6 {[%clk 0:03:00.6]} 2. g3 {[%clk 0:03:01.4]}
2... d5 {[%clk 0:02:54.7]} 3. Bg2 {[%clk 0:03:02]} 3... e6 {[%clk 0:02:55.2]} 4.
O-O {[%clk 0:03:02.7]} 4... Be7 {[%clk 0:02:56.7]} 5. c4 {[%clk 0:03:02]} 5...
O-O {[%clk 0:02:57.6]} 6. d4 {[%clk 0:02:59.8]} 6... dxc4 {[%clk 0:02:58.1]} 7.
Qc2 {[%clk 0:03:00.8]} 7... a6 {[%clk 0:02:59.3]} 8. a4 {[%clk 0:03:01.9]} 8...
Bd7 {[%clk 0:02:59.9]} 9. Bg5 {[%clk 0:03:03.5]} 9... Bc6 {[%clk 0:02:51.2]} 10.
Rd1 {[%clk 0:03:04.1]} 10... a5 {[%clk 0:02:49.4]} 11. Nbd2 {[%clk 0:03:03.3]}
11... Na6 {[%clk 0:02:45.8]} 12. Nxc4 {[%clk 0:03:03.6]} 12... Nb4 {[%clk
0:02:46.6]} 13. Qc1 {[%clk 0:03:04.4]} 13... Nd7 {[%clk 0:02:28.2]} 14. h4
{[%clk 0:03:02.2]} 14... Bxf3 {[%clk 0:02:16]} 15. Bxf3 {[%clk 0:03:00.8]} 15...
c6 {[%clk 0:02:10.6]} 16. e4 {[%clk 0:02:58.6]} 16... h6 {[%clk 0:02:05.2]} 17.
Bxe7 {[%clk 0:02:56.8]} 17... Qxe7 {[%clk 0:02:04.9]} 18. e5 {[%clk 0:02:50.3]}
18... Kh8 {[%clk 0:01:41.1]} 19. Ra3 {[%clk 0:02:46.6]} 19... Rab8 {[%clk
0:01:17.1]} 20. Nxa5 {[%clk 0:02:46.5]} 20... f6 {[%clk 0:01:09.7]} 21. Nc4
{[%clk 0:02:43.8]} 21... fxe5 {[%clk 0:01:07]} 22. dxe5 {[%clk 0:02:32.8]} 22...
Rf5 {[%clk 0:01:07.1]} 23. Be4 {[%clk 0:02:32.6]} 23... Rh5 {[%clk 0:00:37.7]}
24. Bg6 {[%clk 0:02:23]} 24... Rxe5 {[%clk 0:00:33.1]} 25. Rxd7 {[%clk
0:02:23.4]} 25... Qxd7 {[%clk 0:00:28.5]} 26. Nxe5 {[%clk 0:02:23.8]} 26... Qd4
{[%clk 0:00:30]} 27. Qf4 {[%clk 0:02:22.9]} 27... Kg8 {[%clk 0:00:31.9]} 28.
Qxd4 {[%clk 0:02:23.9]} 1-0

[Event "*** Titled Tuesday Blitz"]
[Site "Chess.com"]
[Date "2018.04.03"]
[Round "4"]
[White "FearNoEvil12"]
[Black "XiaoKangZhong"]
[Result "1-0"]
[WhiteElo "1983"]
[BlackElo "2023"]
[TimeControl "180+2"]
[EndTime "13:48:20 PDT"]
[Termination "FearNoEvil12 won by checkmate"]

1. e4 {[%clk 0:03:01.9]} 1... c5 {[%clk 0:02:59.6]} 2. Nc3 {[%clk 0:03:00.6]}
2... Nc6 {[%clk 0:02:58.9]} 3. f4 {[%clk 0:03:01.9]} 3... g6 {[%clk 0:02:55.9]}
4. Nf3 {[%clk 0:03:03.1]} 4... Bg7 {[%clk 0:02:55.5]} 5. Bc4 {[%clk 0:03:04.6]}
5... d6 {[%clk 0:02:53.8]} 6. f5 {[%clk 0:03:06]} 6... gxf5 {[%clk 0:02:50.6]}
7. d3 {[%clk 0:03:07.3]} 7... fxe4 {[%clk 0:02:50]} 8. dxe4 {[%clk 0:03:08]}
8... e6 {[%clk 0:02:50.4]} 9. O-O {[%clk 0:03:08.5]} 9... Nge7 {[%clk
0:02:48.8]} 10. Bg5 {[%clk 0:03:07.3]} 10... O-O {[%clk 0:02:44.1]} 11. Qe1
{[%clk 0:03:07.3]} 11... Qc7 {[%clk 0:02:33.7]} 12. Qh4 {[%clk 0:02:58.8]} 12...
Ng6 {[%clk 0:02:29.5]} 13. Qh5 {[%clk 0:02:59.2]} 13... Nce5 {[%clk 0:02:24.2]}
14. Be2 {[%clk 0:02:54.2]} 14... Nxf3+ {[%clk 0:02:17.7]} 15. Rxf3 {[%clk
0:02:51.9]} 15... Qb6 {[%clk 0:02:15.8]} 16. Raf1 {[%clk 0:02:43.4]} 16... Qxb2
{[%clk 0:02:01.7]} 17. Rh3 {[%clk 0:02:35.8]} 17... h6 {[%clk 0:01:44.1]} 18.
Bxh6 {[%clk 0:02:32.3]} 18... e5 {[%clk 0:01:35.3]} 19. Bxg7 {[%clk 0:02:27.3]}
19... Bxh3 {[%clk 0:01:34]} 20. Bf6 {[%clk 0:02:16.7]} 20... Qxc3 {[%clk
0:01:04.4]} 21. Qh6 {[%clk 0:02:12.5]} 21... Qd4+ {[%clk 0:01:00.6]} 22. Kh1
{[%clk 0:02:11.1]} 22... Bxg2+ {[%clk 0:01:00.9]} 23. Kxg2 {[%clk 0:02:11.1]}
23... Qxe4+ {[%clk 0:01:01.4]} 24. Bf3 {[%clk 0:02:05.4]} 24... Qxc2+ {[%clk
0:00:45.2]} 25. Kh1 {[%clk 0:02:04]} 25... Qg2+ {[%clk 0:00:29.9]} 26. Bxg2
{[%clk 0:02:01.7]} 26... Nf4 {[%clk 0:00:30.4]} 27. Qg7# {[%clk 0:02:00.4]} 1-0

[Event "*** Titled Tuesday Blitz"]
[Site "Chess.com"]
[Date "2018.04.03"]
[Round "4"]
[White "fancyknightmaneuvers"]
[Black "lukas_111111"]
[Result "1-0"]
[WhiteElo "2528"]
[BlackElo "2526"]
[TimeControl "180+2"]
[EndTime "13:48:22 PDT"]
[Termination "fancyknightmaneuvers won by resignation"]

1. e4 {[%clk 0:03:01.9]} 1... c5 {[%clk 0:03:00]} 2. Nf3 {[%clk 0:03:01.9]} 2...
d6 {[%clk 0:03:01.6]} 3. Bb5+ {[%clk 0:03:00.5]} 3... Nd7 {[%clk 0:03:01.5]} 4.
O-O {[%clk 0:02:59.7]} 4... Nf6 {[%clk 0:03:01.6]} 5. Re1 {[%clk 0:02:59]} 5...
a6 {[%clk 0:03:02.8]} 6. Bf1 {[%clk 0:03:00.4]} 6... b5 {[%clk 0:03:01.7]} 7. a4
{[%clk 0:02:59.1]} 7... Bb7 {[%clk 0:02:45.3]} 8. axb5 {[%clk 0:02:54.1]} 8...
axb5 {[%clk 0:02:41.6]} 9. Rxa8 {[%clk 0:02:51]} 9... Qxa8 {[%clk 0:02:36.7]}
10. Bxb5 {[%clk 0:02:52.3]} 10... Bxe4 {[%clk 0:02:32.9]} 11. d4 {[%clk
0:02:50.2]} 11... Bxf3 {[%clk 0:02:27.6]} 12. gxf3 {[%clk 0:02:45.5]} 12... cxd4
{[%clk 0:02:15.3]} 13. Qxd4 {[%clk 0:02:45.8]} 13... e5 {[%clk 0:02:00.8]} 14.
f4 {[%clk 0:02:41.4]} 14... Kd8 {[%clk 0:01:09.6]} 15. fxe5 {[%clk 0:02:38.1]}
15... dxe5 {[%clk 0:01:09.5]} 16. Rxe5 {[%clk 0:02:13.8]} 16... Qa1 {[%clk
0:01:07.9]} 17. Bxd7 {[%clk 0:02:05]} 17... Nxd7 {[%clk 0:01:00]} 18. Rd5 {[%clk
0:02:05.1]} 18... Bd6 {[%clk 0:00:40.5]} 19. Rxd6 {[%clk 0:02:01.9]} 19... Qxb1
{[%clk 0:00:40.7]} 20. Rxd7+ {[%clk 0:01:53.5]} 20... Kc8 {[%clk 0:00:37.5]} 21.
Qd5 {[%clk 0:01:40]} 21... Qxc1+ {[%clk 0:00:35.1]} 22. Kg2 {[%clk 0:01:40]} 1-0

[Event "*** Titled Tuesday Blitz"]
[Site "Chess.com"]
[Date "2018.04.03"]
[Round "4"]
[White "Slovak_fighter2000"]
[Black "DrVitman"]
[Result "1-0"]
[WhiteElo "2361"]
[BlackElo "2511"]
[TimeControl "180+2"]
[EndTime "13:48:33 PDT"]
[Termination "Slovak_fighter2000 won on time"]

1. d4 {[%clk 0:03:01.9]} 1... Nf6 {[%clk 0:02:50.8]} 2. Bf4 {[%clk 0:03:02.1]}
2... e6 {[%clk 0:02:51.3]} 3. e3 {[%clk 0:03:03]} 3... b6 {[%clk 0:02:52.5]} 4.
Nf3 {[%clk 0:03:04.3]} 4... Bb7 {[%clk 0:02:52.8]} 5. Bd3 {[%clk 0:03:03.7]}
5... Bd6 {[%clk 0:02:54.1]} 6. Bg3 {[%clk 0:02:56.4]} 6... Bxg3 {[%clk
0:02:50.1]} 7. hxg3 {[%clk 0:02:58.3]} 7... Nc6 {[%clk 0:02:51.2]} 8. c3 {[%clk
0:02:53.1]} 8... Ne7 {[%clk 0:02:51.3]} 9. Nbd2 {[%clk 0:02:50.6]} 9... h6
{[%clk 0:02:51.1]} 10. Qe2 {[%clk 0:02:51.2]} 10... c5 {[%clk 0:02:45.2]} 11. a4
{[%clk 0:02:48]} 11... Qc7 {[%clk 0:02:45.7]} 12. Ba6 {[%clk 0:02:31.6]} 12...
O-O {[%clk 0:02:34.9]} 13. O-O {[%clk 0:02:23.7]} 13... d6 {[%clk 0:02:23.7]}
14. Rfc1 {[%clk 0:02:05.6]} 14... Rfc8 {[%clk 0:02:21.1]} 15. a5 {[%clk
0:01:58.5]} 15... Bxa6 {[%clk 0:02:15.4]} 16. Qxa6 {[%clk 0:01:57.4]} 16... Rab8
{[%clk 0:02:16.1]} 17. axb6 {[%clk 0:01:52.6]} 17... axb6 {[%clk 0:02:16.6]} 18.
Ra2 {[%clk 0:01:46.6]} 1-0

[Event "*** Titled Tuesday Blitz"]
[Site "Chess.com"]
[Date "2018.04.03"]
[Round "4"]
[White "TomPolgar"]
[Black "Perecke"]
[Result "1-0"]
[WhiteElo "2211"]
[BlackElo "1895"]
[TimeControl "180+2"]
[EndTime "13:48:35 PDT"]
[Termination "TomPolgar won by resignation"]

1. e4 {[%clk 0:03:01.9]} 1... e5 {[%clk 0:02:58.2]} 2. Nf3 {[%clk 0:02:55]} 2...
Nc6 {[%clk 0:02:38.5]} 3. Nc3 {[%clk 0:02:54.2]} 3... g6 {[%clk 0:02:37]} 4. d4
{[%clk 0:02:46.8]} 4... exd4 {[%clk 0:02:22.2]} 5. Nxd4 {[%clk 0:02:48.7]} 5...
Bg7 {[%clk 0:02:22]} 6. Be3 {[%clk 0:02:49.2]} 6... Nge7 {[%clk 0:02:23.1]} 7.
Qd2 {[%clk 0:02:47.1]} 7... O-O {[%clk 0:02:23.1]} 8. O-O-O {[%clk 0:02:47.6]}
8... d6 {[%clk 0:02:24.5]} 9. h4 {[%clk 0:02:45]} 9... a6 {[%clk 0:02:25.8]} 10.
h5 {[%clk 0:02:45.8]} 10... g5 {[%clk 0:02:18.8]} 11. Nxc6 {[%clk 0:02:36.9]}
11... Nxc6 {[%clk 0:02:18.9]} 12. Bxg5 {[%clk 0:02:37.3]} 12... Bxc3 {[%clk
0:02:17.3]} 13. bxc3 {[%clk 0:02:34.7]} 13... f6 {[%clk 0:02:17.4]} 14. Bc4+
{[%clk 0:02:31.3]} 14... Kh8 {[%clk 0:02:17.2]} 15. Bh6 {[%clk 0:02:31.6]} 15...
Re8 {[%clk 0:02:17.2]} 16. Qf4 {[%clk 0:02:27.5]} 16... Ne5 {[%clk 0:02:15]} 17.
Bb3 {[%clk 0:02:22.3]} 17... Qe7 {[%clk 0:02:15.7]} 18. f3 {[%clk 0:02:10.6]}
18... Be6 {[%clk 0:02:15.9]} 19. g4 {[%clk 0:02:09.3]} 19... c5 {[%clk
0:02:13.2]} 20. Bd5 {[%clk 0:02:08.2]} 20... Bxd5 {[%clk 0:02:07.7]} 21. Rxd5
{[%clk 0:02:08.9]} 21... Nf7 {[%clk 0:02:07.7]} 22. Qd2 {[%clk 0:02:05.3]} 22...
b5 {[%clk 0:02:05.6]} 23. Bf4 {[%clk 0:02:01.4]} 23... Rad8 {[%clk 0:02:05.5]}
24. Rd1 {[%clk 0:02:01.3]} 24... Qe6 {[%clk 0:01:49.3]} 25. Kb1 {[%clk
0:01:47.9]} 25... b4 {[%clk 0:01:50]} 26. cxb4 {[%clk 0:01:45.4]} 26... Rb8
{[%clk 0:01:50]} 27. c3 {[%clk 0:01:40.2]} 27... a5 {[%clk 0:01:31.5]} 28. Bxd6
{[%clk 0:01:40.1]} 28... Nxd6 {[%clk 0:01:30.2]} 29. Rxd6 {[%clk 0:01:40.6]}
29... Qc4 {[%clk 0:01:24.1]} 30. Qd3 {[%clk 0:01:26.2]} 30... Qxd3+ {[%clk
0:01:23.7]} 31. R1xd3 {[%clk 0:01:26.5]} 31... axb4 {[%clk 0:01:24.3]} 32. c4
{[%clk 0:01:25.2]} 32... b3 {[%clk 0:01:24.3]} 33. Rxb3 {[%clk 0:01:25.5]} 1-0

[Event "*** Titled Tuesday Blitz"]
[Site "Chess.com"]
[Date "2018.04.03"]
[Round "4"]
[White "biostatistician"]
[Black "Mykola-Bortnyk"]
[Result "0-1"]
[WhiteElo "2451"]
[BlackElo "2706"]
[TimeControl "180+2"]
[EndTime "13:48:40 PDT"]
[Termination "Mykola-Bortnyk won by resignation"]

1. d4 {[%clk 0:03:01.9]} 1... Nf6 {[%clk 0:02:54.7]} 2. Nf3 {[%clk 0:03:03]}
2... b5 {[%clk 0:02:55.2]} 3. Bg5 {[%clk 0:03:01.8]} 3... Bb7 {[%clk 0:02:56]}
4. e3 {[%clk 0:02:58.3]} 4... a6 {[%clk 0:02:56.3]} 5. c4 {[%clk 0:02:54.7]}
5... e6 {[%clk 0:02:40.9]} 6. cxb5 {[%clk 0:02:49.6]} 6... axb5 {[%clk
0:02:42.8]} 7. Bxb5 {[%clk 0:02:50.3]} 7... Bxf3 {[%clk 0:02:43.4]} 8. Qxf3
{[%clk 0:02:46.2]} 8... c6 {[%clk 0:02:44.8]} 9. Bxf6 {[%clk 0:02:39]} 9... Qa5+
{[%clk 0:02:41.8]} 10. Nc3 {[%clk 0:02:38.1]} 10... cxb5 {[%clk 0:02:42.7]} 11.
Bh4 {[%clk 0:02:08]} 11... b4 {[%clk 0:02:35.5]} 12. Ne2 {[%clk 0:02:08.5]}
12... b3+ {[%clk 0:02:32.5]} 13. Nc3 {[%clk 0:02:08.5]} 13... Bb4 {[%clk
0:02:21.6]} 14. O-O {[%clk 0:02:08.6]} 14... Bxc3 {[%clk 0:02:21.7]} 15. bxc3
{[%clk 0:02:10.5]} 15... Nc6 {[%clk 0:02:11.4]} 16. c4 {[%clk 0:02:00.4]} 16...
b2 {[%clk 0:02:06.5]} 17. Rab1 {[%clk 0:02:00.6]} 17... Qxa2 {[%clk 0:02:07.7]}
18. d5 {[%clk 0:01:51.3]} 18... Ne5 {[%clk 0:02:03.5]} 19. Qe4 {[%clk
0:01:42.5]} 19... Nxc4 {[%clk 0:02:04.1]} 20. dxe6 {[%clk 0:01:33.5]} 20... fxe6
{[%clk 0:02:04.5]} 21. Rfd1 {[%clk 0:01:10.5]} 21... O-O {[%clk 0:01:59.9]} 22.
h3 {[%clk 0:00:44.7]} 22... Na3 {[%clk 0:01:52]} 23. Rxb2 {[%clk 0:00:20.9]}
23... Qxb2 {[%clk 0:01:51.7]} 24. Rxd7 {[%clk 0:00:22.8]} 24... Qb1+ {[%clk
0:01:51]} 25. Kh2 {[%clk 0:00:22.9]} 25... Qxe4 {[%clk 0:01:51.6]} 0-1

[Event "*** Titled Tuesday Blitz"]
[Site "Chess.com"]
[Date "2018.04.03"]
[Round "4"]
[White "FontVella8"]
[Black "Zhuu96"]
[Result "0-1"]
[WhiteElo "1851"]
[BlackElo "2750"]
[TimeControl "180+2"]
[EndTime "13:48:58 PDT"]
[Termination "Zhuu96 won on time"]

1. e4 {[%clk 0:03:01.9]} 1... c5 {[%clk 0:03:00]} 2. Nf3 {[%clk 0:03:02.9]} 2...
d6 {[%clk 0:03:01]} 3. d4 {[%clk 0:03:03.5]} 3... cxd4 {[%clk 0:03:02.2]} 4.
Nxd4 {[%clk 0:03:04.6]} 4... Nf6 {[%clk 0:03:03.5]} 5. f3 {[%clk 0:03:04]} 5...
a6 {[%clk 0:03:01.8]} 6. c4 {[%clk 0:03:03.8]} 6... e5 {[%clk 0:03:02]} 7. Nc2
{[%clk 0:03:04.2]} 7... Be7 {[%clk 0:03:03.1]} 8. Nc3 {[%clk 0:03:04.8]} 8...
O-O {[%clk 0:03:04.1]} 9. Be3 {[%clk 0:03:05.9]} 9... Be6 {[%clk 0:03:02.1]} 10.
Qd2 {[%clk 0:03:06.7]} 10... Nbd7 {[%clk 0:03:02.6]} 11. Be2 {[%clk 0:03:07.5]}
11... Rc8 {[%clk 0:03:02.4]} 12. Nd5 {[%clk 0:03:07.9]} 12... Bxd5 {[%clk
0:03:01.8]} 13. cxd5 {[%clk 0:03:08.9]} 13... Nh5 {[%clk 0:03:00.1]} 14. g3
{[%clk 0:03:04.5]} 14... g6 {[%clk 0:02:59.5]} 15. O-O {[%clk 0:03:03.7]} 15...
Ng7 {[%clk 0:02:57.6]} 16. Rac1 {[%clk 0:02:37.8]} 16... f5 {[%clk 0:02:57.8]}
17. b4 {[%clk 0:02:29.4]} 17... f4 {[%clk 0:02:57.1]} 18. Bf2 {[%clk 0:02:30.3]}
18... Bg5 {[%clk 0:02:55.9]} 19. g4 {[%clk 0:02:30.7]} 19... Bh4 {[%clk
0:02:56.9]} 20. Na3 {[%clk 0:01:52.2]} 20... Bxf2+ {[%clk 0:02:53]} 21. Rxf2
{[%clk 0:01:53.4]} 21... Rxc1+ {[%clk 0:02:52.3]} 22. Qxc1 {[%clk 0:01:54.3]}
22... Qb6 {[%clk 0:02:53.8]} 23. Qc3 {[%clk 0:01:48.8]} 23... h5 {[%clk
0:02:44]} 24. gxh5 {[%clk 0:01:39.8]} 24... Nxh5 {[%clk 0:02:41]} 25. Nc4 {[%clk
0:01:35.6]} 25... Qc7 {[%clk 0:02:41.4]} 26. Qe1 {[%clk 0:01:28]} 26... Kh7
{[%clk 0:02:40.6]} 27. Rg2 {[%clk 0:01:26.4]} 27... Rc8 {[%clk 0:02:37.5]} 28.
Qh4 {[%clk 0:01:23.9]} 28... Nf8 {[%clk 0:02:33.1]} 29. Rg5 {[%clk 0:01:03.6]}
29... b5 {[%clk 0:02:31.3]} 30. Rxh5+ {[%clk 0:00:54.6]} 30... gxh5 {[%clk
0:02:31.8]} 31. Qxh5+ {[%clk 0:00:55.8]} 31... Kg7 {[%clk 0:02:24.6]} 32. Nxd6
{[%clk 0:00:46]} 32... Qxd6 {[%clk 0:02:25]} 0-1

[Event "*** Titled Tuesday Blitz"]
[Site "Chess.com"]
[Date "2018.04.03"]
[Round "4"]
[White "Hikaru"]
[Black "Fins0905"]
[Result "1-0"]
[WhiteElo "2993"]
[BlackElo "2594"]
[TimeControl "180+2"]
[EndTime "13:49:10 PDT"]
[Termination "Hikaru won by resignation"]

1. b3 {[%clk 0:03:01.9]} 1... d5 {[%clk 0:03:00]} 2. Bb2 {[%clk 0:03:02.9]} 2...
Bg4 {[%clk 0:03:01.4]} 3. d3 {[%clk 0:03:03.3]} 3... e6 {[%clk 0:02:59.6]} 4.
Nf3 {[%clk 0:03:02.6]} 4... Nf6 {[%clk 0:02:53.2]} 5. g3 {[%clk 0:03:03.4]} 5...
Bxf3 {[%clk 0:02:53.6]} 6. exf3 {[%clk 0:03:05.3]} 6... Bb4+ {[%clk 0:02:51.9]}
7. Nd2 {[%clk 0:03:06]} 7... O-O {[%clk 0:02:52]} 8. a3 {[%clk 0:03:07.1]} 8...
Bd6 {[%clk 0:02:53]} 9. f4 {[%clk 0:03:08]} 9... Nbd7 {[%clk 0:02:51.4]} 10. Bg2
{[%clk 0:03:09.3]} 10... c6 {[%clk 0:02:52.5]} 11. Nf3 {[%clk 0:03:09.1]} 11...
Qc7 {[%clk 0:02:46.6]} 12. Qe2 {[%clk 0:03:09.8]} 12... c5 {[%clk 0:02:39.2]}
13. O-O {[%clk 0:03:09.9]} 13... Rac8 {[%clk 0:02:39.5]} 14. c4 {[%clk 0:03:11]}
14... d4 {[%clk 0:02:32.6]} 15. Rfe1 {[%clk 0:03:10]} 15... Rb8 {[%clk
0:02:31.2]} 16. b4 {[%clk 0:03:09]} 16... cxb4 {[%clk 0:02:20.9]} 17. axb4
{[%clk 0:02:59.7]} 17... Bxb4 {[%clk 0:02:19.6]} 18. Reb1 {[%clk 0:03:01.2]}
18... a6 {[%clk 0:02:09.5]} 19. Bxd4 {[%clk 0:02:56.8]} 19... Bc5 {[%clk
0:02:07.2]} 20. Bc3 {[%clk 0:02:57.2]} 20... Rfc8 {[%clk 0:01:59.1]} 21. Ne5
{[%clk 0:02:50.7]} 21... Bd6 {[%clk 0:01:43.1]} 22. Bh3 {[%clk 0:02:42.8]} 22...
Re8 {[%clk 0:01:32.7]} 23. Bg2 {[%clk 0:02:41.6]} 23... Bf8 {[%clk 0:01:14.3]}
24. d4 {[%clk 0:02:31.9]} 24... Nxe5 {[%clk 0:01:05.4]} 25. fxe5 {[%clk
0:02:32.5]} 25... Nd7 {[%clk 0:01:00.6]} 26. c5 {[%clk 0:02:33.8]} 26... Be7
{[%clk 0:00:39.5]} 27. Qf3 {[%clk 0:02:22.9]} 27... b5 {[%clk 0:00:33.4]} 28.
Rxa6 {[%clk 0:02:22.9]} 28... b4 {[%clk 0:00:26.3]} 29. Rxb4 {[%clk 0:02:13.8]}
29... Nf8 {[%clk 0:00:23.9]} 30. Qc6 {[%clk 0:02:12.7]} 30... Qd8 {[%clk
0:00:21.2]} 31. Rxb8 {[%clk 0:02:10.8]} 31... Qxb8 {[%clk 0:00:22.2]} 32. Rb6
{[%clk 0:02:12.7]} 32... Qd8 {[%clk 0:00:21.6]} 33. Be4 {[%clk 0:02:14.1]} 33...
Ng6 {[%clk 0:00:20.2]} 34. Kg2 {[%clk 0:02:14.4]} 34... Bf8 {[%clk 0:00:19.8]}
35. Rb7 {[%clk 0:02:15.2]} 35... Ne7 {[%clk 0:00:20.2]} 36. Qd7 {[%clk
0:02:16.6]} 36... g6 {[%clk 0:00:18]} 37. c6 {[%clk 0:02:14.2]} 37... Nd5 {[%clk
0:00:16.7]} 38. Qxf7+ {[%clk 0:02:13.7]} 1-0

[Event "*** Titled Tuesday Blitz"]
[Site "Chess.com"]
[Date "2018.04.03"]
[Round "4"]
[White "Rodalquilar"]
[Black "dianosky"]
[Result "0-1"]
[WhiteElo "2421"]
[BlackElo "2294"]
[TimeControl "180+2"]
[EndTime "13:49:10 PDT"]
[Termination "dianosky won by resignation"]

1. e4 {[%clk 0:03:01.6]} 1... c5 {[%clk 0:02:59.8]} 2. Nc3 {[%clk 0:03:02.4]}
2... e6 {[%clk 0:02:59.3]} 3. f4 {[%clk 0:03:03.4]} 3... a6 {[%clk 0:02:59.5]}
4. Nf3 {[%clk 0:03:03]} 4... b5 {[%clk 0:02:58.8]} 5. Qe2 {[%clk 0:03:03.9]}
5... Bb7 {[%clk 0:02:58.8]} 6. d3 {[%clk 0:03:04.1]} 6... Nc6 {[%clk 0:02:58.8]}
7. Be3 {[%clk 0:03:04.3]} 7... Qb6 {[%clk 0:02:58.9]} 8. Qf2 {[%clk 0:02:42.2]}
8... Nf6 {[%clk 0:02:59.2]} 9. h3 {[%clk 0:02:42]} 9... d5 {[%clk 0:02:58.7]}
10. e5 {[%clk 0:02:40.9]} 10... Nd7 {[%clk 0:02:58.5]} 11. d4 {[%clk 0:02:36.3]}
11... cxd4 {[%clk 0:02:55.4]} 12. Nxd4 {[%clk 0:02:36.9]} 12... Nxd4 {[%clk
0:02:55.8]} 13. Bxd4 {[%clk 0:02:37.9]} 13... Bc5 {[%clk 0:02:56.5]} 14. O-O-O
{[%clk 0:02:38.4]} 14... Rc8 {[%clk 0:02:50.3]} 15. Kb1 {[%clk 0:02:38.6]} 15...
Bxd4 {[%clk 0:02:49.1]} 16. Qxd4 {[%clk 0:02:37.2]} 16... Qxd4 {[%clk
0:02:48.7]} 17. Rxd4 {[%clk 0:02:39.1]} 17... h5 {[%clk 0:02:44.3]} 18. g3
{[%clk 0:02:34.3]} 18... Ke7 {[%clk 0:02:38.6]} 19. h4 {[%clk 0:02:26]} 19...
Rc7 {[%clk 0:02:35.2]} 20. Be2 {[%clk 0:02:17.2]} 20... g6 {[%clk 0:02:35.3]}
21. Rhd1 {[%clk 0:02:14.9]} 21... Nb6 {[%clk 0:02:34.9]} 22. a3 {[%clk
0:02:13.7]} 22... Rhc8 {[%clk 0:02:32.1]} 23. Bf3 {[%clk 0:02:01.8]} 23... Nc4
{[%clk 0:02:29.1]} 24. Ka2 {[%clk 0:01:33.2]} 24... Nxb2 {[%clk 0:02:20.1]} 25.
Nxd5+ {[%clk 0:01:14.7]} 25... Bxd5+ {[%clk 0:02:19.2]} 26. Rxd5 {[%clk
0:01:09.6]} 26... exd5 {[%clk 0:02:13.5]} 27. Kxb2 {[%clk 0:01:09.5]} 27...
Rxc2+ {[%clk 0:02:13.5]} 28. Kb1 {[%clk 0:01:11.1]} 28... R2c3 {[%clk
0:02:12.9]} 29. Bxd5 {[%clk 0:01:11.6]} 29... Rd8 {[%clk 0:02:13]} 30. Kb2
{[%clk 0:01:04.7]} 30... Rxg3 {[%clk 0:02:12.6]} 31. Rd4 {[%clk 0:00:57.4]}
31... a5 {[%clk 0:02:08.1]} 32. Ka2 {[%clk 0:00:55.3]} 32... Rc3 {[%clk
0:02:06]} 33. Rd1 {[%clk 0:00:47.6]} 33... Rc5 {[%clk 0:02:05.9]} 34. Bf3 {[%clk
0:00:48.7]} 34... Rxd1 {[%clk 0:02:05.8]} 35. Bxd1 {[%clk 0:00:50.6]} 35... Rc4
{[%clk 0:02:07.2]} 36. f5 {[%clk 0:00:51]} 36... gxf5 {[%clk 0:02:06.5]} 37.
Bxh5 {[%clk 0:00:52]} 37... Rxh4 {[%clk 0:02:06.4]} 38. Be2 {[%clk 0:00:53.9]}
38... Rh2 {[%clk 0:02:06.3]} 0-1